bitfinex-derivatives/quotes_ETHF0:USTF0_20250116
["timestamp","ask_amount","ask_price","bid_price","bid_amount"]
[1737053170757,1.5065,3319.5,3319.1,40.8]
[1737053171065,0.60268,3319.0,3318.9,1.8347]
[1737053171461,0.60266,3319.2,3319.1,0.60264]
[1737053171862,0.60268,3319.1,3319.0,0.60266]
[1737053172970,2.1631,3319.3,3318.9,1.232]
[1737053173161,0.60265,3319.2,3319.1,0.60264]
[1737053173365,2.76574,3319.3,3319.2,0.60264]
[1737053174769,0.60266,3319.2,3319.1,0.60265]
[1737053174960,2.1631,3319.3,3318.9,0.60268]
[1737053174961,0.60268,3319.0,3318.9,0.60268]
[1737053175160,0.60258,3319.6,3319.2,0.60264]
[1737053175365,4.6543903,3319.7,3319.6,0.60255]
[1737053175664,5.2569503,3319.7,3319.3,5.4408]
[1737053175868,0.60258,3319.6,3319.5,0.60257]
[1737053177073,0.6026,3319.5,3319.4,0.6026]
[1737053177371,0.60258,3319.6,3319.5,0.60257]
[1737053177666,0.60259,3319.5,3319.4,0.60259]
[1737053178273,0.6026,3319.4,3319.3,3.81041]
[1737053178462,0.6026,3319.4,3319.3,3.2078]
[1737053178764,0.6026,3319.4,3319.3,0.60262]
[1737053179667,0.6026,3319.4,3319.3,1.83462]
[1737053180069,0.60257,3319.7,3319.6,0.60256]
[1737053180466,9.6666303,3319.8,3319.7,0.60255]
[1737053180864,9.0640903,3319.8,3319.7,0.60255]
[1737053181663,4.6543903,3319.8,3319.7,0.60255]
[1737053182172,2.1069,3320.1,3320.0,0.6025]
[1737053182372,2.70938,3320.1,3320.0,0.6025]
[1737053182863,2.1069,3320.1,3320.0,0.6025]
[1737053183067,4.6543903,3320.2,3320.1,0.60248]
[1737053183270,4.6543903,3320.5,3320.1,3.52755497]
[1737053183478,4.6543903,3320.5,3320.1,1.232]
[1737053183768,4.6543903,3320.5,3320.1,3.52755497]
[1737053183965,5.2568003,3320.5,3320.4,0.60242]
[1737053184269,4.6543903,3320.5,3320.4,2.89797497]
[1737053184675,5.2568003,3320.5,3320.4,2.89797497]
[1737053184869,0.60241,3320.5,3320.4,2.89797497]
[1737053185065,0.60241,3320.5,3320.4,0.60242]
[1737053185277,0.60246,3320.3,3320.2,0.60245]
[1737053185672,0.60242,3320.5,3320.4,0.60242]
[1737053185971,0.60246,3320.2,3320.1,4.13002497]
[1737053186173,0.60246,3320.2,3320.1,3.52755497]
[1737053186575,0.60246,3320.2,3320.1,4.13003497]
[1737053186975,0.60245,3320.3,3320.2,0.60245]
[1737053187669,0.60243,3320.5,3320.4,0.60241]
[1737053187976,2.1069,3320.6,3320.1,3.52755497]
[1737053188363,0.60246,3320.2,3320.1,4.13002497]
[1737053188568,0.60246,3320.2,3320.1,1.83447]
[1737053188767,0.60246,3320.2,3319.8,7.00968497]
[1737053188768,0.60251,3319.9,3319.8,3.2078]
[1737053188972,0.60251,3320.0,3319.9,0.60249]
[1737053189168,0.60251,3320.0,3319.8,6.73535497]
[1737053189469,4.79821,3319.9,3319.8,5.04232]
[1737053189674,2.0932,3319.9,3319.8,7.33787497]
[1737053189870,3.2078,3320.4,3319.9,1.50628]
[1737053190073,3.2078,3320.4,3320.3,0.60244]
[1737053190474,3.2078,3320.4,3320.2,2.29555497]
[1737053190775,2.91877124,3320.3,3320.2,2.89799497]
[1737053190974,0.60248,3320.2,3320.1,0.60247]
[1737053191474,2.91878124,3320.3,3320.2,0.60246]
[1737053191676,0.60245,3320.3,3320.2,0.60246]
[1737053192275,3.81023,3320.4,3320.3,0.60244]
[1737053194370,4.79809,3320.6,3320.5,0.60241]
[1737053194570,4.1957,3320.6,3320.5,2.89796497]
[1737053195272,3.2078,3320.8,3320.7,0.60237]
[1737053195475,2.91867124,3320.9,3320.8,0.60235]
[1737053195871,2.31633124,3320.9,3320.8,2.89790497]
[1737053196377,2.31633124,3321.2,3321.1,0.6023]
[1737053196575,2.31633124,3321.2,3321.1,6.10565497]
[1737053197971,5.3298,3321.8,3321.0,2.29555497]
[1737053198170,5.3298,3321.8,3320.9,3.2078]
[1737053198171,0.60231,3321.0,3320.9,3.2078]
[1737053198371,1.50575,3321.1,3320.6,2.29555497]
[1737053198572,4.71368,3320.8,3320.4,15.8628]
[1737053198778,0.60241,3320.5,3320.4,13.886]
[1737053198975,0.60241,3320.5,3320.4,1.231]
[1737053199172,0.60242,3320.4,3320.3,1.231]
[1737053199372,3.81022,3320.4,3320.3,1.231]
[1737053199573,3.81022,3320.4,3320.3,3.52655497]
[1737053199778,0.60242,3320.4,3320.3,3.52655497]
[1737053200179,3.2078,3320.8,3320.3,3.52655497]
[1737053200373,0.60238,3320.7,3320.4,0.60242]
[1737053200572,0.60238,3320.7,3320.4,0.60241]
[1737053200773,0.60238,3320.7,3320.3,3.52655497]
[1737053200774,3.2078,3320.8,3320.6,2.29555497]
[1737053201071,3.2078,3320.8,3320.7,0.60237]
[1737053201268,2.122,3320.9,3320.8,0.60235]
[1737053202175,2.122,3320.9,3320.7,3.2078]
[1737053202385,2.122,3320.9,3320.4,2.96048073]
[1737053202386,2.122,3320.9,3320.8,0.60235]
[1737053202575,2.122,3320.9,3320.4,2.96048073]
[1737053202881,2.122,3320.9,3320.3,1.231]
[1737053203076,0.6024,3320.6,3320.3,1.231]
[1737053203283,0.6024,3320.6,3320.4,0.60242]
[1737053204179,0.60239,3320.6,3320.4,0.60241]
[1737053204681,5.3298,3320.9,3320.6,0.60238]
[1737053204883,5.93214,3320.9,3320.8,0.60235]
[1737053205176,5.3298,3320.9,3320.8,0.60235]
[1737053206681,2.31633124,3321.2,3321.1,0.6023]
[1737053206876,2.91861124,3321.2,3321.1,1.8333]
[1737053207072,2.31633124,3321.2,3321.1,1.8333]
[1737053207278,2.31633124,3321.2,3321.1,42.6333]
[1737053207577,0.60228,3321.2,3321.1,1.231]
[1737053208083,2.83447,3321.3,3321.2,0.60228]
[1737053208287,2.2322,3321.3,3321.2,0.60228]
[1737053208674,2.2322,3321.3,3321.1,1.231]
[1737053208675,0.60228,3321.2,3321.1,1.231]
[1737053209284,0.60235,3320.9,3320.8,1.231]
[1737053210679,0.60235,3320.9,3320.8,1.83335]
[1737053210980,3.2078,3321.0,3320.9,0.60233]
[1737053211174,6.8865903,3321.3,3320.8,1.231]
[1737053211382,7.4888503,3321.3,3321.2,0.60228]
[1737053211576,7.4888503,3321.3,3320.8,1.231]
[1737053211577,6.8865903,3321.3,3320.8,1.231]
[1737053211776,5.2566803,3321.2,3321.1,0.60229]
[1737053211982,4.6543903,3321.2,3321.1,0.60229]
[1737053212381,5.2566703,3321.2,3321.1,0.60229]
[1737053213286,0.60228,3321.2,3321.1,0.60229]
[1737053214185,0.60229,3321.2,3320.9,0.60233]
[1737053214379,0.60229,3321.2,3321.1,0.6023]
[1737053214777,2.2322,3321.3,3321.2,0.60228]
[1737053215587,2.83446,3321.3,3321.2,0.60228]
[1737053216083,2.2322,3321.3,3321.2,0.60228]
[1737053216278,0.60226,3321.3,3321.2,0.60228]
[1737053217183,2.2241,3321.5,3321.0,4.46625073]
[1737053217383,2.82634,3321.5,3321.4,0.60224]
[1737053217778,2.2241,3321.5,3321.0,4.46625073]
[1737053217980,2.31621514,3321.6,3321.5,0.60222]
[1737053218289,2.91842514,3321.6,3321.5,0.60222]
[1737053218484,2.91842514,3321.6,3321.5,41.40222]
[1737053218687,2.31621514,3321.6,3321.5,41.40222]
[1737053218983,0.60221,3321.6,3321.5,41.40222]
[1737053220174,0.60221,3321.6,3321.5,0.60222]
[1737053221178,0.6023,3321.2,3321.1,0.60227]
[1737053221384,0.60233,3321.0,3320.9,0.60233]
[1737053222496,4.93641,3321.1,3321.0,0.60232]
[1737053222690,2.1567,3321.1,3321.0,3.56280073]
[1737053222985,0.6023,3321.1,3321.0,3.56279073]
[1737053223190,5.0479,3321.1,3321.0,0.60231]
[1737053224392,4.4456,3321.1,3321.0,0.60231]
[1737053224579,5.49982094,3321.1,3321.0,0.60231]
[1737053224785,0.45192094,3321.1,3321.0,6.77059073]
[1737053225197,4.6543903,3321.2,3321.1,0.6023]
[1737053225381,4.6543903,3321.2,3321.1,43.6963]
[1737053225589,5.76712659,3321.4,3321.1,48.094]
[1737053225789,6.11449,3322.3,3322.2,0.6021]
[1737053225995,12.43295191,3322.3,3322.2,1.8331]
[1737053226290,6.92055191,3322.3,3322.2,1.8331]
[1737053226493,6.92055191,3322.3,3322.2,42.6331]
[1737053227597,0.60208,3322.4,3322.3,0.60208]
[1737053227994,0.60208,3322.4,3322.2,42.031]
[1737053227995,2.3046,3322.6,3322.2,42.031]
[1737053228202,2.90664,3322.6,3322.5,0.60204]
[1737053228499,2.3046,3322.6,3322.5,0.60204]
[1737053228694,7.4907,3322.7,3322.6,0.60203]
[1737053228886,2.81696,3323.0,3322.8,0.60197]
[1737053229089,2.215,3323.0,3322.9,0.60197]
[1737053229490,3.2078,3323.1,3322.7,2.96048073]
[1737053229693,3.2078,3323.1,3322.2,42.031]
[1737053229894,6.16828073,3322.5,3321.6,3.2078]
[1737053230198,0.60221,3321.6,3321.5,1.231]
[1737053230497,0.60221,3321.6,3321.5,10.63231952]
[1737053231002,4.89851,3321.6,3321.5,10.63231952]
[1737053232001,4.89851,3321.6,3321.5,1.231]
[1737053232389,0.60224,3321.4,3321.3,1.231]
[1737053232699,1.50571,3321.2,3320.6,1.231]
[1737053232900,0.60246,3320.2,3320.1,4.71654171]
[1737053233200,0.60248,3320.1,3320.0,49.95534171]
[1737053233390,5.07428,3320.1,3320.0,49.95534171]
[1737053234398,4.4718,3320.1,3320.0,45.2388]
[1737053234589,2.1826,3320.1,3320.0,45.2388]
[1737053234793,2.78508,3320.1,3320.0,45.2388]
[1737053235500,2.78508,3320.1,3320.0,42.031]
[1737053235699,2.78508,3320.1,3319.8,2.96048073]
[1737053235700,0.60258,3319.6,3319.4,0.6026]
[1737053235998,0.60258,3319.6,3319.5,1.231]
[1737053236195,0.60258,3319.6,3319.5,42.031]
[1737053236602,2.1826,3320.1,3319.5,44.99148073]
[1737053236802,0.60254,3319.8,3319.6,0.60256]
[1737053236995,0.60256,3319.7,3319.5,45.59406073]
[1737053237194,0.60256,3319.7,3319.5,42.63358]
[1737053237396,0.60254,3319.8,3319.6,0.60257]
[1737053237595,2.1826,3320.1,3319.5,42.031]
[1737053237800,0.60256,3319.7,3319.5,42.63358]
[1737053238703,0.60257,3319.6,3319.5,42.031]
[1737053239007,0.60256,3319.7,3319.5,42.63357]
[1737053239697,0.60257,3319.6,3319.5,42.031]
[1737053239905,0.60257,3319.6,3319.5,40.8]
[1737053240201,0.60261,3319.4,3319.3,12.649]
[1737053240399,0.60261,3319.4,3319.3,13.88]
[1737053240801,2.91221,3319.4,3319.3,13.88]
[1737053242899,2.91221,3319.4,3319.3,54.68]
[1737053243703,2.91221,3319.4,3319.3,55.28262]
[1737053243903,2.91221,3319.4,3319.3,54.68]
[1737053244802,5.4628,3319.5,3319.3,55.28262]
[1737053245012,3.8104,3319.5,3319.4,0.60261]
[1737053245204,3.2078,3319.5,3319.4,0.60261]
[1737053245597,0.60258,3319.6,3319.5,0.60258]
[1737053247002,7.5246,3319.9,3319.3,54.68]
[1737053247402,0.60254,3319.8,3319.7,0.60255]
[1737053247610,0.60254,3319.8,3319.3,54.68]
[1737053247815,0.60255,3319.7,3319.6,0.60256]
[1737053248001,7.5246,3319.9,3319.3,54.68]
[1737053248314,0.60255,3319.8,3319.6,0.60255]
[1737053248606,0.60255,3319.8,3319.3,54.68]
[1737053248802,0.60255,3319.8,3319.6,0.60255]
[1737053249006,0.60255,3319.7,3319.6,0.60256]
[1737053249713,2.1698,3319.9,3319.6,3.2078]
[1737053250003,0.60254,3319.8,3319.7,0.60255]
[1737053250607,2.1698,3319.9,3319.3,40.8]
[1737053250800,1.50639,3319.7,3318.8,3.2078]
[1737053251106,3.2078,3319.1,3318.6,0.60274]
[1737053251300,3.2078,3319.1,3318.7,1.232]
[1737053251301,0.60271,3318.8,3318.7,1.232]
[1737053251609,0.60277,3318.5,3318.4,1.232]
[1737053251805,3.81057,3318.5,3318.4,1.232]
[1737053253411,3.2078,3318.5,3318.4,1.83479]
[1737053253597,0.60274,3318.7,3318.6,0.60274]
[1737053254802,0.60277,3318.6,3318.5,0.60276]
[1737053255000,0.60275,3318.7,3318.6,0.60274]
[1737053255206,10.006,3319.0,3318.4,1.232]
[1737053255408,0.60276,3318.6,3318.5,0.60276]
[1737053255601,10.006,3319.0,3318.4,1.232]
[1737053255803,1.50675,3318.9,3318.1,41.40284]
[1737053256109,10.006,3319.0,3318.3,1.232]
[1737053256110,0.60279,3318.4,3318.3,1.232]
[1737053256310,0.60281,3318.3,3318.2,0.60281]
[1737053256504,0.60281,3318.3,3318.2,1.83481]
[1737053256703,3.2078,3318.6,3318.2,1.232]
[1737053256904,1.50679,3318.9,3318.3,0.60279]
[1737053257110,0.6028,3318.4,3318.3,0.6028]
[1737053257410,0.60281,3318.3,3318.2,1.83481]
[1737053257708,1.50682,3318.8,3318.2,1.232]
[1737053258105,0.60281,3318.3,3318.2,1.83481]
[1737053258300,0.60281,3318.3,3318.2,1.232]
[1737053258808,0.60281,3318.3,3318.2,1.83482]
[1737053260101,3.2078,3318.6,3318.3,0.6028]
[1737053260307,0.60281,3318.3,3318.2,1.232]
[1737053260910,0.60286,3318.0,3317.9,12.656]
[1737053261208,5.3941,3318.2,3317.1,2.96048073]
[1737053261415,5.3941,3318.2,3317.2,44.3426]
[1737053261416,0.60299,3317.3,3317.2,44.3426]
[1737053261708,0.60299,3317.3,3317.2,42.032]
[1737053261910,0.60299,3317.3,3317.2,42.63501]
[1737053262307,4.71507,3317.8,3317.2,42.032]
[1737053262509,3.2078,3317.8,3317.2,42.032]
[1737053262900,0.60295,3317.6,3317.5,0.60294]
[1737053264403,0.6029,3317.8,3317.5,0.60293]
[1737053264608,0.60293,3317.7,3317.5,0.60293]
[1737053265010,0.60293,3317.7,3317.3,3.2078]
[1737053265011,0.60293,3317.7,3317.6,0.60293]
[1737053265214,0.60294,3317.6,3317.5,0.60294]
[1737053265513,0.60299,3317.3,3317.2,42.032]
[1737053266109,0.60298,3317.4,3317.2,44.33691091]
[1737053266414,2.2879,3317.5,3317.2,44.33691091]
[1737053266602,2.89087,3317.5,3317.4,0.60297]
[1737053266800,5.2962,3317.8,3317.6,0.60292]
[1737053267002,3.8107,3317.8,3317.7,0.60291]
[1737053267206,3.2078,3317.8,3317.7,0.60291]
[1737053268012,3.8107,3317.8,3317.7,0.60291]
[1737053269418,0.6029,3317.8,3317.7,0.60291]
[1737053270617,0.60286,3318.1,3318.0,0.60284]
[1737053270815,2.2169,3318.2,3318.0,3.53691091]
[1737053271017,2.81973,3318.2,3318.1,0.60284]
[1737053271316,0.60284,3318.1,3318.0,1.232]
[1737053271711,5.4247,3318.2,3317.6,3.81072]
[1737053271909,0.60293,3317.6,3317.5,0.60294]
[1737053272115,0.60293,3317.6,3317.5,1.83494]
[1737053272310,3.67567,3318.0,3317.7,0.6029]
[1737053272311,0.60292,3317.8,3317.7,0.6029]
[1737053272906,2.1685,3318.0,3317.6,2.30491091]
[1737053273118,2.77137,3318.0,3317.9,0.60288]
[1737053273319,2.1685,3318.0,3317.6,2.30491091]
[1737053273516,2.1685,3318.0,3317.5,1.83495]
[1737053273517,0.60293,3317.6,3317.5,1.83495]
[1737053273917,2.1685,3318.0,3317.5,1.232]
[1737053274115,0.60289,3317.9,3317.8,0.60288]
[1737053274322,2.1685,3318.0,3317.6,2.30491091]
[1737053274512,2.1685,3318.0,3317.9,2.90779091]
[1737053274918,5.4247,3318.2,3318.1,0.60284]
[1737053275317,6.02753,3318.2,3318.1,1.83484]
[1737053275623,6.02753,3318.2,3318.1,1.232]
[1737053276214,6.02753,3318.2,3318.1,1.83484]
[1737053276409,6.02753,3318.2,3318.1,1.232]
[1737053277314,6.02753,3318.2,3318.1,1.83484]
[1737053277515,6.02753,3318.2,3318.1,1.232]
[1737053278716,5.4247,3318.2,3318.1,1.83484]
[1737053279022,6.02752,3318.2,3318.1,1.83484]
[1737053279216,6.02752,3318.2,3318.1,1.232]
[1737053280616,6.02752,3318.2,3318.1,1.83484]
[1737053280819,6.02752,3318.2,3318.1,1.232]
[1737053281623,0.60296,3317.5,3317.4,0.60295]
[1737053281820,0.60288,3318.0,3317.9,0.60287]
[1737053282119,2.81973,3318.2,3318.1,0.60284]
[1737053282324,2.2169,3318.2,3318.1,0.60284]
[1737053282516,2.81972,3318.2,3318.1,0.60284]
[1737053282821,0.6029,3317.8,3317.7,3.2078]
[1737053283017,0.6029,3317.8,3317.7,1.232]
[1737053283418,0.6029,3317.8,3317.7,1.83491]
[1737053283622,0.6029,3317.8,3317.7,1.232]
[1737053283823,0.6029,3317.8,3317.7,1.83491]
[1737053284825,0.6029,3317.8,3317.7,0.60291]
[1737053285022,1.50716,3318.0,3317.2,43.10491091]
[1737053285226,0.60297,3317.5,3317.4,0.60295]
[1737053286015,2.149,3317.5,3317.3,1.232]
[1737053286220,0.60297,3317.4,3317.3,1.232]
[1737053286618,0.60297,3317.4,3317.3,1.83499]
[1737053286925,0.60299,3317.3,3317.2,40.8]
[1737053287225,0.60299,3317.3,3317.2,42.032]
[1737053287414,0.60299,3317.3,3317.2,42.635]
[1737053291126,0.60299,3317.4,3317.3,0.60297]
[1737053292223,6.11984,3317.6,3317.5,0.60295]
[1737053292526,6.11984,3317.6,3317.2,44.33691091]
[1737053292527,7.7883,3317.6,3317.2,40.8]
[1737053292721,1.50752,3317.2,3316.3,1.232]
[1737053293027,1.50752,3317.2,3316.1,7.92434171]
[1737053293028,0.60319,3316.2,3316.1,8.52753171]
[1737053293324,0.60319,3316.2,3316.1,7.92434171]
[1737053293530,0.60319,3316.2,3316.1,4.71654171]
[1737053294224,0.60322,3316.0,3315.9,7.07481257]
[1737053294521,0.60322,3316.0,3315.7,9.40131952]
[1737053294522,0.60326,3315.8,3315.7,9.40131952]
[1737053294929,5.60326,3315.8,3315.7,2.30134952]
[1737053295131,5.51271091,3316.0,3314.9,1.232]
[1737053295430,0.6034,3315.0,3314.9,40.8]
[1737053295932,0.60342,3314.9,3314.8,1.232]
[1737053296123,3.2078,3315.3,3314.8,1.232]
[1737053296124,0.6034,3315.1,3314.9,0.60342]
[1737053296336,0.60342,3314.9,3314.8,1.232]
[1737053296626,5.51271091,3314.9,3314.4,1.9270409]
[1737053296825,0.6035,3314.5,3314.4,1.9270409]
[1737053297221,0.60349,3314.6,3314.4,1.9270409]
[1737053297429,0.60349,3314.6,3314.3,0.60352]
[1737053297626,3.2078,3314.9,3314.4,2.30491091]
[1737053297821,3.81123,3314.9,3314.6,0.60346]
[1737053298232,3.81123,3314.9,3314.7,0.60345]
[1737053298626,7.63262299,3315.3,3314.5,1.233]
[1737053298831,0.6034,3315.1,3314.8,0.60343]
[1737053299026,0.60342,3315.0,3314.5,3.53791091]
[1737053299233,0.6034,3315.1,3314.8,0.60343]
[1737053299430,0.60341,3315.0,3314.8,0.60343]
[1737053299631,0.60341,3315.0,3314.7,0.60345]
[1737053300037,0.6034,3315.1,3314.6,4.3344]
[1737053300232,2.30491091,3314.9,3314.6,4.3344]
[1737053300536,5.51271091,3314.9,3314.4,1.233]
[1737053300729,0.6035,3314.5,3314.4,1.233]
[1737053300931,0.60352,3314.4,3314.2,41.40355]
[1737053301235,2.90840091,3314.6,3314.4,0.60351]
[1737053301427,0.60349,3314.6,3314.4,0.60351]
[1737053301633,5.51271091,3314.9,3314.3,1.233]
[1737053301634,0.60345,3314.8,3314.5,0.60349]
[1737053301935,0.60345,3314.8,3314.3,1.233]
[1737053301936,3.2078,3314.9,3314.7,0.60345]
[1737053302131,3.2078,3314.9,3314.4,4.2118]
[1737053302335,3.81115,3315.3,3315.1,0.60338]
[1737053302534,3.81115,3315.3,3315.1,1.83638]
[1737053302730,0.60337,3315.2,3315.1,1.233]
[1737053302939,3.2078,3315.3,3315.2,0.60337]
[1737053303530,0.60332,3315.5,3315.1,42.033]
[1737053303731,0.60332,3315.5,3315.2,0.60337]
[1737053303932,5.51271091,3315.7,3315.2,0.60337]
[1737053304133,0.60334,3315.4,3315.2,0.60337]
[1737053304535,0.60335,3315.3,3315.1,42.63638]
[1737053304736,0.60337,3315.2,3315.1,42.033]
[1737053304939,3.81117,3315.2,3315.1,42.033]
[1737053305438,3.81117,3315.2,3315.1,40.8]
[1737053305829,3.2078,3315.2,3314.9,1.233]
[1737053306142,0.6034,3315.1,3314.9,1.83642]
[1737053306337,0.60339,3315.1,3314.9,42.033]
[1737053306535,0.60339,3315.1,3314.9,42.63641]
[1737053307040,0.60339,3315.1,3314.9,1.83641]
[1737053307245,0.60341,3315.0,3314.9,1.233]
[1737053307637,0.60342,3315.0,3314.8,0.60344]
[1737053308042,0.60344,3314.8,3314.7,40.8]
[1737053308243,0.6035,3314.5,3314.4,5.4448]
[1737053308636,0.60349,3314.6,3314.4,6.0483]
[1737053308841,5.51271091,3315.2,3314.4,5.4448]
[1737053309040,5.51271091,3315.2,3314.6,0.60346]
[1737053309341,5.51271091,3315.2,3314.4,5.4448]
[1737053309540,0.60344,3314.9,3314.4,5.4448]
[1737053309739,2.1119,3315.1,3314.5,0.60348]
[1737053309936,3.2078,3314.7,3314.6,0.60346]
[1737053310337,3.81126,3314.7,3314.6,0.60346]
[1737053310738,0.60349,3314.6,3314.5,0.60349]
[1737053310946,3.2078,3314.7,3314.4,5.4448]
[1737053311239,0.60349,3314.6,3314.5,0.60349]
[1737053311545,3.81127,3314.7,3314.6,0.60348]
[1737053312343,0.60348,3314.6,3314.5,1.83649]
[1737053312746,3.81127,3314.7,3314.6,0.60348]
[1737053313139,3.2078,3314.7,3314.6,0.60348]
[1737053314538,3.2078,3315.1,3315.0,0.6034]
[1737053314942,0.60336,3315.3,3315.2,0.60337]
[1737053315937,3.81112,3315.5,3315.4,0.60333]
[1737053316134,0.60335,3315.4,3315.3,0.60334]
[1737053316338,0.60336,3315.3,3315.2,0.60336]
[1737053316744,3.81113,3315.5,3315.4,0.60333]
[1737053316945,0.60334,3315.4,3314.8,2.30491091]
[1737053317146,0.60334,3315.4,3315.3,0.60335]
[1737053317346,3.2078,3315.5,3315.0,2.1879]
[1737053317347,5.51271091,3315.5,3315.0,2.1879]
[1737053317540,3.81112,3315.5,3315.4,0.60333]
[1737053318051,3.2078,3315.5,3315.3,1.237]
[1737053318246,3.2078,3315.5,3315.4,0.60333]
[1737053319649,3.81111,3315.5,3315.4,0.60333]
[1737053320056,3.2078,3315.5,3315.4,0.60333]
[1737053320351,3.81111,3315.5,3315.4,0.60333]
[1737053321537,3.2078,3315.5,3315.4,0.60333]
[1737053321749,2.2597,3316.0,3315.4,0.60333]
[1737053321750,0.60325,3315.9,3315.8,0.60326]
[1737053321945,5.4675,3316.0,3315.9,0.60324]
[1737053321946,3.2078,3316.0,3315.9,0.60324]
[1737053322147,3.2078,3316.0,3315.5,2.0968]
[1737053322449,0.60328,3315.8,3315.7,0.60328]
[1737053322643,3.2078,3316.0,3315.5,2.0968]
[1737053322846,0.60325,3315.9,3315.8,0.60324]
[1737053323042,3.2078,3316.0,3315.9,0.60324]
[1737053323245,3.2078,3316.0,3315.6,2.178]
[1737053323549,3.81103,3316.0,3315.9,0.60324]
[1737053323747,3.2078,3316.0,3315.9,0.60324]
[1737053323952,2.1909,3316.3,3315.6,5.3858]
[1737053324249,0.60321,3316.1,3316.0,0.60321]
[1737053324744,0.6032,3316.2,3316.1,0.6032]
[1737053324943,2.79409,3316.3,3316.2,0.60319]
[1737053325147,5.96446,3316.4,3316.3,0.60317]
[1737053325345,0.60317,3316.3,3316.2,1.236]
[1737053332354,5.3613,3316.4,3316.1,1.236]
[1737053332559,0.60319,3316.2,3316.1,1.236]
[1737053332854,0.60319,3316.2,3316.1,1.8392]
[1737053333155,0.60319,3316.3,3316.2,0.60317]
[1737053333352,0.60319,3316.2,3316.1,1.236]
[1737053334857,5.51271091,3316.4,3315.8,2.0981]
[1737053334858,0.60324,3315.9,3315.8,2.0981]
[1737053335047,0.60324,3315.9,3315.8,3.3341]
[1737053335253,0.60324,3315.9,3315.8,3.93736]
[1737053335553,0.60324,3315.9,3315.8,3.3341]
[1737053335961,0.60328,3315.7,3315.6,5.3858]
[1737053336259,0.60328,3315.7,3315.6,3.414]
[1737053337153,0.60328,3315.7,3315.6,1.236]
[1737053337356,0.60339,3315.1,3315.0,4.418]
[1737053337553,0.60339,3315.1,3315.0,5.654]
[1737053337753,0.60339,3315.1,3315.0,42.036]
[1737053338452,0.60339,3315.1,3315.0,1.236]
[1737053339058,4.5410153,3315.1,3315.0,1.236]
[1737053339765,4.5410153,3315.1,3315.0,1.83941]
[1737053340363,0.60339,3315.1,3315.0,1.236]
[1737053340656,4.08821449,3315.2,3315.0,1.236]
[1737053340861,3.48483449,3315.2,3315.1,0.60339]
[1737053341158,4.62042448,3315.4,3315.3,0.60335]
[1737053341351,5.78965967,3315.6,3315.3,5.51271091]
[1737053341554,6.92055191,3315.9,3315.5,41.40331]
[1737053341759,5.79163253,3315.9,3315.8,6.11597091]
[1737053342065,0.43065191,3316.2,3316.1,0.6032]
[1737053342250,7.42644914,3316.4,3316.1,4.60982182]
[1737053342556,9.22740255,3316.6,3316.3,3.2078]
[1737053342754,2.182,3318.0,3316.3,3.2078]
[1737053342755,9.72529786,3316.8,3316.7,0.6031]
[1737053342955,6.7297,3318.8,3316.7,11.74871091]
[1737053343156,3.0152,3318.5,3318.2,2.90773091]
[1737053343360,3.0152,3318.5,3318.3,1.236]
[1737053343361,0.60279,3318.4,3318.3,1.236]
[1737053343854,3.61799,3318.4,3318.3,1.236]
[1737053344062,3.0152,3318.4,3317.3,3.2078]
[1737053344359,3.6182,3317.2,3317.1,1.236]
[1737053346362,3.0152,3317.2,3316.8,3.2078]
[1737053346558,3.61826,3316.9,3316.8,3.2078]
[1737053346763,3.61826,3316.9,3316.8,4.4408]
[1737053347559,3.61826,3316.9,3316.8,3.2078]
[1737053347772,3.61826,3316.9,3316.8,4.4408]
[1737053348157,3.2078,3317.3,3316.8,4.4408]
[1737053348361,3.61822,3317.2,3317.0,0.60304]
[1737053348566,0.60303,3317.1,3316.9,0.60305]
[1737053348762,3.2078,3317.3,3316.8,4.4408]
[1737053349067,0.60297,3317.4,3317.3,0.60298]
[1737053349257,3.2078,3318.0,3317.3,0.60298]
[1737053349258,3.2078,3318.0,3317.3,3.2078]
[1737053349569,3.61808,3317.9,3317.7,0.6029]
[1737053349769,3.61808,3317.9,3317.8,1.233]
[1737053351964,3.0152,3317.9,3317.8,1.8359]
[1737053352170,2.1433,3318.1,3317.8,1.233]
[1737053352368,2.1433,3318.1,3318.0,0.60286]
[1737053352564,3.8106,3318.4,3318.2,0.60282]
[1737053352772,3.81059,3318.4,3318.2,0.60281]
[1737053352973,3.81059,3318.4,3318.3,40.8]
[1737053353366,6.82579,3318.4,3318.3,40.8]
[1737053353872,0.60286,3318.1,3317.9,0.60287]
[1737053354072,3.0152,3318.0,3317.8,1.233]
[1737053354270,3.61808,3317.9,3317.8,1.233]
[1737053354572,3.0152,3318.0,3317.8,1.233]
[1737053354869,2.1357,3318.8,3318.4,0.60278]
[1737053355072,0.60279,3318.4,3318.3,0.60279]
[1737053355374,0.60279,3318.4,3318.2,3.81062]
[1737053355574,2.1357,3318.8,3318.2,3.81062]
[1737053355776,0.60279,3318.4,3318.3,0.60279]
[1737053356174,0.60275,3318.6,3318.4,0.60278]
[1737053356370,3.0152,3318.5,3318.3,0.6028]
[1737053356577,2.2397,3318.7,3318.2,3.81061]
[1737053356578,0.60281,3318.3,3318.2,3.81061]
[1737053356875,1.50707,3318.2,3317.9,1.232]
[1737053357078,3.61806,3318.0,3317.9,1.232]
[1737053357272,2.1884,3318.2,3317.9,1.232]
[1737053357273,3.0152,3318.2,3317.9,4.4398]